Cogmind - Beta 13 @@@ ROGUE MODE // 2024.05.24 @ 00:32:25 Player: MLGOON Result: Destroyed by G-47 Trooper with Particle Gun Performance ------------- Evolutions (2) 1000 Regions Visited (4) 800 Robots Destroyed (39) 195 Value Destroyed (1093) 1093 Prototype IDs (0) 0 Alien Tech Used (0) 0 Bonus (0) 0 TOTAL SCORE: 3088 Bonus ------- None Cogmind --------- Core Integrity 0/550 Matter 148/300 Energy 300/300 System Corruption 0% Temperature Cool (9) Movement Core (400) Ox7 Location -8/Materials Parts ------- > --- POWER (2) -------- (None) > --- PROPULSION (2) --- (None) > --- UTILITY (4) ------ Large Storage Unit Large Battery Advanced Targeting Computer > --- WEAPON (3) ------- (None) > --- INVENTORY (15) --- Light Treads Aluminum Leg Aluminum Leg High-capacity Battery (250) Terrain Scanner Tractor Beam Peak State ------------ > --- POWER ------------ Improved Ion Engine Improved Ion Engine > --- PROPULSION ------- Light Treads Light Treads > --- UTILITY ---------- Improved Heat Sink Large Storage Unit Compact Battery Advanced Targeting Computer > --- WEAPON ----------- Beam Rifle Beam Cannon Assault Rifle > --- INVENTORY -------- Light Ion Engine Light Treads Light Treads Light Treads Aluminum Leg Aluminum Leg Large Battery High-capacity Battery Terrain Scanner Tractor Beam Grenade Launcher Mining Laser [Rating: 21] Favorites ----------- Power Improved Ion Engine Engine Improved Ion Engine Propulsion Light Treads Treads Light Treads Utility Large Storage Unit Device Improved Heat Sink Storage Large Storage Unit Processor Advanced Targeting Computer Protection Medium Armor Plating Weapon Beam Cannon Energy Gun Particle Gun Energy Cannon Beam Cannon Ballistic Gun Assault Rifle Launcher Grenade Launcher Special Weapon Mining Laser Impact Weapon Hammer Build | -11 -10 -9 -9 -8 ------- Run | Yrd Mat Mat Min Mat Slots Evolved 4 | . . 2 . 2 Power 1 | . . 1 . . Propulsion . | . . . . . Utility 2 | . . 1 . 1 Weapon 1 | . . . . 1 Parts Attached 54 | 6 10 14 10 14 Power 10 | 1 1 4 3 1 Engine 10 | 1 1 4 3 1 Core . | . . . . . Reactor . | . . . . . Propulsion 11 | 2 . 3 2 4 Treads 11 | 2 . 3 2 4 Leg . | . . . . . Wheel . | . . . . . Hover . | . . . . . Flight . | . . . . . Utility 12 | 1 4 1 2 4 Device 5 | . 3 1 1 . Storage 5 | 1 1 . . 3 Processor 1 | . . . . 1 Hackware . | . . . . . Protection 1 | . . . 1 . Artifact . | . . . . . Weapon 21 | 2 5 6 3 5 Energy Gun 8 | . 4 2 . 2 Energy Cannon 3 | . 1 1 1 . Ballistic Gun 3 | 2 . . 1 . Ballistic Cannon . | . . . . . Launcher 3 | . . 2 . 1 Special Weapon 3 | . . 1 1 1 Impact Weapon 1 | . . . . 1 Slashing Weapon . | . . . . . Piercing Weapon . | . . . . . Special Melee Weapon . | . . . . . Unidentified Prototypes . | . . . . . Parts Lost 16 | . . . 1 15 Power 3 | . . . . 3 Propulsion 5 | . . . . 5 Utility 1 | . . . . 1 Weapon 7 | . . . 1 6 Highest Loss Streak 15 | . . . 1 15 To Critical Strikes . | . . . . . Average Slot Usage (%) 97 | . 97 99 100 87 Engine 18 | . 14 21 22 14 Treads 22 | . 28 22 22 15 Device 16 | . 11 21 19 11 Storage 12 | . 14 11 11 17 Energy Gun 11 | . 13 14 8 6 Energy Cannon 5 | . 6 5 2 7 Ballistic Gun 3 | . 7 . 2 7 Special Weapon 3 | . . . 8 . Naked Turns . | . . . . . Heaviest Build 48 | 13 29 40 42 48 Greatest Support 40 | 40 40 40 40 40 Greatest Overweight (x) 8 | . . . 1 8 Average Overweight (x) . | . . . . 1 Largest Inventory Capacity 15 | 8 15 15 15 15 Average Capacity 13 | 7 8 15 15 15 Most Carried 15 | 6 10 15 15 12 Average Carried 11 | 3 7 13 14 10 Final Capacity 15 | 8 15 15 15 15 Final Carried 15 | 6 10 15 12 6 Class Distribution -------------------- 64% | Mutant 22% | Scavenger-Mutant 7% | Scavenger-Skirmisher 4% | Scavenger-Gunner Dominant Class ---------------- Mutant | -10/Materials Mutant | -9/Materials Scavenger-Mutant | -9/Mines Scavenger-Skirmisher | -8/Materials Resources | -11 -10 -9 -9 -8 ----------- Run | Yrd Mat Mat Min Mat Matter Collected 673 | 213 179 130 93 58 Remotely . | . . . . . Salvage Created 1040 | . 394 287 105 254 Parts 63 | . 25 19 9 10 Haulers Intercepted . | . . . . . Recyclers Shooed 2 | . 1 1 . . Parts Field Recycled . | . . . . . Retrieved Matter . | . . . . . Parts Self-Destructed . | . . . . . Prevented . | . . . . . Kills | -11 -10 -9 -9 -8 ------- Run | Yrd Mat Mat Min Mat Combat Hostiles Destroyed 36 | . 11 11 6 8 Guns 18 | . 8 6 2 2 Cannons 11 | . 3 4 4 . AOE 3 | . . . . 3 Classes Destroyed 7 | . 3 1 1 2 Builder 1 | . . . . 1 Watcher 2 | . 1 . . 1 Swarmer 14 | . 3 5 3 3 Grunt 16 | . 8 3 2 3 Brawler 1 | . . . . 1 Duelist 2 | . . . 1 1 Sentry 3 | . . 3 . . Best Kill Streak 7 | . 4 4 3 7 Combat Bots Only 4 | . 4 4 3 4 Max Kills in Single Turn 2 | . 2 1 1 2 Gunslinging 1 | . 1 . . . Exploded 2 | . . . . 2 Melee . | . . . . . Uniques/NPCs Destroyed . | . . . . . Combat | -11 -10 -9 -9 -8 -------- Run | Yrd Mat Mat Min Mat Hostile Shots Fired 259 | . 40 53 46 120 Missed 58 | . 8 14 7 29 Damage Taken 2837 | . 356 396 411 1674 Core 733 | . 76 52 54 551 Absorbed by Shields . | . . . . . Regen/Repaired (Parts) 211 | . . 72 . 139 Core Remaining (%) 80 | 100 69 . 73 . Volleys Fired 111 | . 30 35 14 32 Largest 3 | . 2 2 2 3 Hottest 180 | . 125 121 165 180 Shots Fired 216 | . 60 69 26 61 Gun 152 | . 56 50 13 33 Cannon 44 | . 4 18 1 21 Launcher 6 | . . . . 6 Special 14 | . . 1 12 1 Kinetic 47 | . 26 . 1 20 Thermal 163 | . 34 69 25 35 Explosive 6 | . . . . 6 Electromagnetic . | . . . . . Robot Hit Streak 17 | . 6 17 3 8 Robot Miss Streak 7 | . 5 4 7 3 Penetration Max . | . . . . . Secondary Targets 2 | . 2 . . . Max Gunslinging Chain 1 | . 1 . . . Shots Hit Robots 135 | . 34 41 8 52 Core Hits 54 | . 18 13 8 15 Critical Kills 4 | . 2 1 . 1 Critical Parts Destroyed 2 | . . . . 2 Critical Strikes 8 | . 3 2 . 3 Burn 2 | . 1 1 . . Meltdown 2 | . . 1 . 1 Destroy 2 | . 2 . . . Smash 2 | . . . . 2 Melee Attacks 14 | . . . . 14 Impact 14 | . . . . 14 Slashing . | . . . . . Piercing . | . . . . . Sneak Attacks . | . . . . . Combat Hostiles . | . . . . . Follow-up Attacks . | . . . . . Damage Inflicted 2514 | . 457 681 192 1184 Guns 1241 | . 406 436 66 333 Cannons 547 | . 51 216 17 263 Explosions 295 | . . . . 295 Melee 269 | . . . . 269 Ramming 36 | . . 29 7 . Kinetic 385 | . 182 . . 203 Thermal 1529 | . 275 652 185 417 Explosive 295 | . . . . 295 Electromagnetic . | . . . . . Impact 269 | . . . . 269 Slashing . | . . . . . Piercing . | . . . . . Highest Corruption . | . . . . . Average Corruption . | . . . . . Corruption Purged . | . . . . . Corruption Blocked . | . . . . . Overload Shots . | . . . . . Overflow Damage 76 | . . 18 . 58 Projectiles 18 | . . 18 . . Explosions . | . . . . . Melee 58 | . . . . 58 Knockbacks 4 | . . 1 . 3 Impact 4 | . . 1 . 3 Kinetic . | . . . . . Secondary . | . . . . . Self-Inflicted Damage 78 | . . . . 78 Shots 2 | . . . . 2 Rammed 14 | . 1 11 2 . Targets Rammed 14 | . 1 11 2 . Kicked . | . . . . . Crushed . | . . . . . Highest Temperature 464 | . 186 189 464 255 Average Temperature 83 | . 49 58 149 74 Received Heat Transfer 1038 | . 180 117 102 639 Effects 8 | . . . 6 2 Shutdowns 3 | . . . 3 . Energy Bleed 1 | . . . 1 . Interference 2 | . . . . 2 Short Circuit 1 | . . . 1 . Damage (minor) 1 | . . . 1 . Siege Activations . | . . . . . Robots Corrupted . | . . . . . Combat Hostiles . | . . . . . Parts Fried 1 | . . . . 1 Impact Corruptions 2 | . . . . 2 Robots Melted 3 | . . 1 . 2 Combat Hostiles 3 | . . 1 . 2 Parts Melted 6 | . 1 5 . . Heat Transferred 3644 | . 767 1591 385 901 Parts Sabotaged . | . . . . . Parts Stolen . | . . . . . Parts Stripped . | . . . . . Power Chain Reactions . | . . . . . Alert | -11 -10 -9 -9 -8 ------- Run | Yrd Mat Mat Min Mat Peak Influence 347 | . 272 347 175 151 Initial 103 | . . 61 103 24 Average 100 | . 120 187 60 54 Maximum Alert Level 1 | . 1 1 . . Low Security (%) 86 | 100 92 48 100 100 Level 1 13 | . 7 51 . . Level 2 . | . . . . . Level 3 . | . . . . . Level 4 . | . . . . . Level 5 . | . . . . . High Security . | . . . . . Max Security . | . . . . . Squads Dispatched 9 | . 2 3 1 3 Investigation . | . . . . . Extermination . | . . . . . Reinforcement 6 | . 2 3 1 . Assault . | . . . . . Garrison 3 | . . . . 3 Intercept . | . . . . . Searches Triggered . | . . . . . Construction Impeded 1 | . . . 1 . Haulers Reinforced . | . . . . . Active Scanning Responses . | . . . . . Cargo Convoy Interrupts . | . . . . . Stealth | -11 -10 -9 -9 -8 --------- Run | Yrd Mat Mat Min Mat Distress Signals 2 | . 1 1 . . Communications Jammed . | . . . . . Distress Signals . | . . . . . Times Spotted 61 | . 21 18 6 16 Peak Tracking Total 7 | . 5 4 3 7 Tactical Retreats 2 | . . 1 . 1 Traps | -11 -10 -9 -9 -8 ------- Run | Yrd Mat Mat Min Mat Traps Triggered . | . . . . . Indirectly . | . . . . . Trap Hack Attempts . | . . . . . Triggered . | . . . . . Disarmed . | . . . . . Reprogrammed . | . . . . . Reused . | . . . . . Traps Extracted . | . . . . . Installed . | . . . . . Triggered . | . . . . . Machines | -11 -10 -9 -9 -8 ---------- Run | Yrd Mat Mat Min Mat Machines Disabled 4 | . 1 2 . 1 Max in Single Turn 1 | . 1 1 . 1 Machines Repaired . | . . . . . Machines Dismantled . | . . . . . Machines Sabotaged . | . . . . . Overloaded Fab Kills . | . . . . . Hacking | -11 -10 -9 -9 -8 --------- Run | Yrd Mat Mat Min Mat Machines Accessed 10 | . 3 4 . 3 Terminals 8 | . 3 3 . 2 Fabricators . | . . . . . Repair Stations 2 | . . 1 . 1 Recycling Units . | . . . . . Scanalyzers . | . . . . . Garrison Access . | . . . . . Total Hacks 21 | . 7 8 . 6 Successful 16 | . 5 5 . 6 Failed 5 | . 2 3 . . Catastrophic 1 | . 1 . . . Database Lockouts . | . . . . . Manual 7 | . 3 4 . . Terminals 17 | . 7 6 . 4 Fabricators . | . . . . . Repair Stations 4 | . . 2 . 2 Recycling Units . | . . . . . Scanalyzers . | . . . . . Garrison Access . | . . . . . Terminal Hacks 9 | . 3 2 . 4 Record 1 | . . . . 1 Part Schematic 1 | . . 1 . . Robot Analysis 1 | . 1 . . . Alert Level 1 | . . 1 . . Locate Traps 1 | . 1 . . . Recall Investigation 1 | . . . . 1 Zone Layout 3 | . 1 . . 2 Fabricator Hacks . | . . . . . Repair Station Hacks 4 | . . 2 . 2 Scan Component 2 | . . 1 . 1 Repair 2 | . . 1 . 1 Recycling Unit Hacks . | . . . . . Scanalyzer . | . . . . . Garrison Access Hacks . | . . . . . Unauthorized Hacks 3 | . 2 1 . . Terminals 3 | . 2 1 . . Botnet 3 | . 2 1 . . Fabricators . | . . . . . Repair Stations . | . . . . . Recycling Units . | . . . . . Scanalyzers . | . . . . . Garrison Access . | . . . . . Data Cores Recovered . | . . . . . Used . | . . . . . Hacking Detections 6 | . 1 3 . 2 Full Trace Events . | . . . . . Feedback Events . | . . . . . Feedback Blocked . | . . . . . Robot Schematics Acquired . | . . . . . Robots Built . | . . . . . Authchips . | . . . . . Time . | . . . . . Total Robot Build Rating . | . . . . . Part Schematics Acquired 1 | . . 1 . . Parts Built . | . . . . . Authchips . | . . . . . Time . | . . . . . Total Part Build Rating . | . . . . . Parts Repaired 2 | . . 1 . 1 Time 52 | . . 26 . 26 Parts Recycled . | . . . . . Recycled Matter . | . . . . . Retrieved Matter . | . . . . . Retrieved Components . | . . . . . Parts Scanalyzed . | . . . . . Part Schematics Acquired . | . . . . . Parts Damaged . | . . . . . Bothacking | -11 -10 -9 -9 -8 ------------ Run | Yrd Mat Mat Min Mat Used RIF Installer . | . . . . . Robots Hacked . | . . . . . Non-combat . | . . . . . Combat . | . . . . . Robot Hacks Applied . | . . . . . Relay Couplers Released . | . . . . . Fabnet Peak Effective % . | . . . . . Robots Rewired . | . . . . . Allies Hacked . | . . . . . Hacks Repelled . | . . . . . Allies | -11 -10 -9 -9 -8 -------- Run | Yrd Mat Mat Min Mat Total Allies . | . . . . . Largest Group . | . . . . . Highest-Rated Group . | . . . . . Highest-Rated Ally . | . . . . . Total Orders . | . . . . . Ally Attacks . | . . . . . Total Damage . | . . . . . Kills . | . . . . . Allies Corrupted . | . . . . . Allies Melted . | . . . . . Intel | -11 -10 -9 -9 -8 ------- Run | Yrd Mat Mat Min Mat Robot Analysis Total 1 | . 1 . . . Derelict Logs Recovered . | . . . . . Drone Launches . | . . . . . Drone Recoveries . | . . . . . Exploration | -11 -10 -9 -9 -8 ------------- Run | Yrd Mat Mat Min Mat Turns Passed 3096 | 115 732 714 1002 533 Spaces Moved 1314 | 65 372 300 442 135 Core 9 | 3 . . . 6 Treads 1305 | 62 372 300 442 129 Legs . | . . . . . Wheels . | . . . . . Hover . | . . . . . Flight . | . . . . . Fastest Speed 50 | 50 160 160 160 160 Average Speed 174 | 154 160 160 178 243 Slowest Speed 450 | 160 160 160 240 450 Overloaded Moves . | . . . . . Propulsion Burnouts . | . . . . . Robots Hopped . | . . . . . Cave-ins Triggered . | . . . . . Exploration Rate (%) 35 | 5 63 30 65 13 Regions Visited 4 Branch Regions 1 Pre-discovered Areas . | . . . . . Known Exits Taken . | . . . . . Unknown Exits Taken 4 | 1 1 1 1 . Scrap Searched 2 | . . . 2 . Spaces Dug 1 | . . . 1 . Terrain Destroyed 38 | . . . 6 32 Melee . | . . . . . Projectile 6 | . . . 6 . AOE 32 | . . . . 32 Terrain Rammed . | . . . . . Walls Destroyed . | . . . . . Machines Disabled . | . . . . . Actions | -11 -10 -9 -9 -8 --------- Run | Yrd Mat Mat Min Mat Total 1837 | 76 453 452 601 255 Wait 296 | . 24 85 129 58 Move 1310 | 64 371 299 441 135 Hop . | . . . . . Pick Up 24 | 6 9 6 1 2 Fast Attach 10 | 6 1 . . 3 Attach 11 | . . 2 1 8 Detach . | . . . . . Swap 33 | . 9 12 9 3 Drop 14 | . 8 2 4 . Fire 111 | . 30 35 14 32 Melee 14 | . . . . 14 Ram . | . . . . . Kick . | . . . . . Crush 14 | . 1 11 2 . Escape Stasis . | . . . . . Rewire . | . . . . . Trap . | . . . . . Miscellaneous . | . . . . . Route ------- -11/Scrapyard -10/Materials (discovered 2 exits: *Mat / [*Min]) -9/Materials (discovered 2 exits: [*Min] / [*Sto]) -9/Mines -8/Materials History --------- Turn | Location | Event 20 | -11/Scrapyard | Discovered new exit (range 15) 116 | -11/Scrapyard | Entered Materials 310 | -10/Materials | Build established: Mutant 505 | -10/Materials | Discovered new exit (range 16) 735 | -10/Materials | Discovered new exit (range 13) 848 | -10/Materials | Entered another Materials area 848 | -9/Materials | Evolved 2 slots: Power x1, Utility x1 1213 | -9/Materials | Discovered new exit (range 14) 1485 | -9/Materials | Discovered new exit (range 10) 1521 | -9/Materials | Repaired Beam Cannon 1562 | -9/Materials | Entered Mines 2187 | -9/Mines | Build established: Scavenger-Mutant 2431 | -9/Mines | Discovered new exit (range 3) 2564 | -9/Mines | Entered Materials 2564 | -8/Materials | Evolved 2 slots: Utility x1, Weapon x1 2742 | -8/Materials | Repaired Lgt. Treads 2888 | -8/Materials | Garrison activated, responded to threat 3032 | -8/Materials | Core integrity fell below 50% 3082 | -8/Materials | Core integrity fell below 20% 3097 | -8/Materials | Destroyed by G-47 Trooper with Particle Gun Last Messages --------------- 03085_ K-01 Serf collects debris. 03087_ G-47 Trooper suffers critical hit (Smash). 03087_ Destroyed Aluminum Leg. 03087_ G-47 Trooper system corrupted by crushing effect. 03088_ K-01 Serf collects debris. 03089_ Critical hit (Burn: +37). 03090_ K-01 Serf collects debris. 03090_ G-47 Trooper suffers critical hit (Smash). 03090_ Destroyed Imp. Heat Sink. 03090_ G-47 Trooper system corrupted by crushing effect. 03091_ G-47 Trooper system terminally corrupted. 03091_ Aluminum Leg fried. 03092_ K-01 Serf collects debris. 03093_ Acquired 44 matter. 03093_ Hammer destroyed. 03094_ K-01 Serf collects debris. Map ----- +----------------------------------------------------+ | | | | | | | ??????????????????????????????????? | | ??????????????????????????????????? | | ??????????????????????????????????? | | ??????????????????????????????????? | | ??????????????????????????????????? | | ????##################????????????? | | ????# # + #????????????? | | ????# # # """ ##???????????? | | ????# """" + + "T" #???????????? | | ????# """" # # ##???????????? | | ????# """" # # #????????????? | | ????# # # #????????????? | | ????######## ########???########?? | | ???## # ########???# #?? | | ??? # """# # ##### #?? | | ??? # """# # ## # #?? | | ??? # """# # ## # #?? | | ??? # """# # + #?? | | ??? # + # T # #?? | | ??? ######## # !]a k# ########?? | | ???## ### % ##??????? | | ??? != #??????? | | ??? % @##??????? | | ??? # # #??????? | | ???### ## #g[ #??????? | | ??? # ]]! ## # =k ####?#?#? | | ??? # ]! ## # !##????? | | ??? # ]! ## !#???#? | | ??? # ## # !#????? | | ??? + ## ! !#????? | | ??? # ## #%% !#????? | | ??? # ## ## !##????? | | ??? # ######## ## #####????? | | ??? # #??########### #????????? | | ?????????#??# # ########## | | ?????????#?## """ "" #ss# """ # | | ?????????#??# """ G" + + """ """# | | ?????????#??# """ "" # # """ R"# | | ????????????# # # """# | | ????????????# # # # | | ????????????# # # # | | ????????????# # # # | | ????????????########### ########## | | ?????# ############## ### # | | ?????# # # """ # | | ?????# # # """ # | | ?????# # """ # | +----------------------------------------------------+ Best States ------------- Heat Dissipation 45 Energy Generation 19 Energy Capacity 680 Matter Stores 300 Matter Capacity 300 Sight Range 16 Terrain Scan Range 14 Terrain Scan Density 10 Armor Coverage 225 Evasion (%) 40 Targeting Accuracy 8 Recoil Reduction 2 Item Schematics ----------------- Beam Cannon | -9/Materials | Hacked Robot Schematics ------------------ None Fabricated ------------ Nothing Alien Tech Used ----------------- None Achievements -------------- True Hacker Challenges ------------ None Game ------ Seed ZhirovFireWheel Manual? 0 Play Time 00:44:17 Cumulative 8.1 hours Start 2024.05.23 @ 23:43:06 End 2024.05.24 @ 00:32:25 Sessions 1 Manual Loads 0 Difficulty Rogue Special Mode None Game No. 10 Rogue 10 Adventurer 0 Explorer 0 Win Type - Total 0 Types 0/0/0/0/0/0/0/0/0 Lore% 6 Gallery% 15 Achievement% 10 Wizard Run 0 Options --------- Layout 2 ASCII 0 Keyboard 0 Movement Numpad Keybinds 0 Fullscreen 1 Font 24/Smallcaps Map View 50x44 Zoom Use 0% Tactical HUD 1 Map Filters NONE Filters NONE Steam 1 RUN: 16301762-5b8a-4688-8d75-3e038099601c